bitfinex/quotes_SOLUSD_20250722
["timestamp","ask_amount","ask_price","bid_price","bid_amount"]
[1753165329345,16.78468397,199.72,199.67,7.22072009]
[1753165329644,5.00650846,199.74,199.69,7.22072009]
[1753165329845,16.78468397,199.73,199.69,7.22072009]
[1753165330020,17.46468397,199.73,199.65,5.70870022]
[1753165330216,16.78468397,199.73,199.63,32.5634]
[1753165330439,16.78468397,199.68,199.61,26.0]
[1753165330749,24.00540406,199.66,199.6,7.22072009]
[1753165330920,16.78468397,199.64,199.55,0.7]
[1753165331121,24.00540406,199.64,199.57,7.22072009]
[1753165331445,24.00540406,199.64,199.58,7.22072009]
[1753165331621,16.78468397,199.62,199.56,26.0]
[1753165331823,19.09551807,199.69,199.59,7.22072009]
[1753165332026,16.78468397,199.65,199.61,7.22072009]
[1753165332326,0.68,199.65,199.61,7.22072009]
[1753165332543,16.78468397,199.63,199.56,26.0]
[1753165332716,16.78468397,199.61,199.56,33.22072009]
[1753165332920,0.68,199.6,199.56,26.0]
[1753165333131,0.68,199.59,199.55,7.22072009]
[1753165333328,24.00540406,199.61,199.54,7.22072009]
[1753165333541,16.78468397,199.59,199.54,7.22072009]
[1753165333738,16.78468397,199.59,199.56,7.22072009]
[1753165334152,0.68,199.59,199.56,7.22072009]
[1753165334830,16.78468397,199.61,199.56,0.7]
[1753165335148,17.46468397,199.61,199.57,7.22072009]
[1753165335565,5.0092784,199.63,199.59,7.22072009]
[1753165335849,5.0092784,199.63,199.6,7.22072009]
[1753165336157,16.78468397,199.62,199.59,7.22072009]
[1753165336355,17.46468397,199.62,199.58,7.22072009]
[1753165336529,16.78468397,199.6,199.53,62.88]
[1753165336731,0.68,199.61,199.47,0.7]
[1753165336732,24.00540406,199.58,199.47,0.7]
[1753165336947,16.78468397,199.56,199.52,7.22072009]
[1753165337145,16.78468397,199.56,199.49,26.0]
[1753165337355,0.68,199.57,199.5,7.22072009]
[1753165337356,0.68,199.55,199.5,7.22072009]
[1753165337536,21.79646164,199.53,199.5,7.22072009]
[1753165337747,22.47646164,199.53,199.5,7.22072009]
[1753165337946,0.68,199.52,199.48,7.22072009]
[1753165338127,16.78468397,199.51,199.48,7.22072009]
[1753165338330,21.79646164,199.53,199.5,7.22072009]
[1753165338737,0.68,199.52,199.49,7.22072009]
[1753165339054,16.78468397,199.57,199.51,7.22072009]
[1753165339228,16.78468397,199.57,199.52,10.7713692]
[1753165339426,16.78468397,199.55,199.51,10.7713692]
[1753165339630,16.78468397,199.52,199.47,0.5]
[1753165339846,16.78468397,199.52,199.45,0.03]
[1753165340047,0.68,199.51,199.48,10.7713692]
[1753165340248,16.78468397,199.52,199.48,10.7713692]
[1753165340450,17.46468397,199.52,199.46,26.0]
[1753165340659,17.46468397,199.52,199.48,10.7713692]
[1753165340837,0.68,199.51,199.47,10.7713692]
[1753165341037,0.68,199.5,199.45,0.03]
[1753165341354,16.78468397,199.49,199.45,0.03]
[1753165341660,16.78468397,199.47,199.45,0.03]
[1753165341846,0.68,199.48,199.45,10.8013692]
[1753165342156,16.78468397,199.5,199.47,10.7713692]
[1753165342368,0.68,199.57,199.49,10.7713692]
[1753165342534,16.78468397,199.56,199.48,0.7]
[1753165343044,16.78468397,199.56,199.52,10.7713692]
[1753165343240,16.78468397,199.54,199.48,0.7]
[1753165343434,21.79630849,199.54,199.52,10.7713692]
[1753165343754,0.68,199.53,199.45,26.03]
[1753165343943,16.78468397,199.49,199.45,0.03]
[1753165344451,16.78468397,199.47,199.45,0.03]
[1753165344660,27.55605317,199.47,199.45,0.03]
[1753165344840,17.46468397,199.46,199.45,0.03]
[1753165345451,22.47822051,199.46,199.45,0.03]
[1753165345975,33.24958971,199.46,199.45,0.03]
[1753165346135,22.47822051,199.46,199.45,0.03]
[1753165347054,16.78468397,199.47,199.45,0.03]
[1753165347362,5.69353654,199.46,199.45,0.03]
[1753165347548,16.46490574,199.46,199.45,0.03]
[1753165348245,16.78468397,199.47,199.45,0.03]
[1753165348454,0.68,199.46,199.45,0.03]
[1753165348754,11.4513692,199.46,199.45,0.03]
[1753165349958,16.46490574,199.46,199.45,0.03]
[1753165350149,5.69353654,199.46,199.45,0.03]
[1753165350346,16.46490574,199.46,199.45,0.03]
[1753165351361,5.69353654,199.46,199.45,0.03]
[1753165351660,16.78468397,199.45,199.41,0.03]
[1753165351844,32.57059534,199.42,199.41,0.03]
[1753165352252,33.25059534,199.42,199.41,0.03]
[1753165352642,22.47922614,199.42,199.41,0.03]
[1753165352970,33.25059534,199.42,199.41,0.03]
[1753165353340,22.47922614,199.42,199.41,0.03]
[1753165353758,33.25059534,199.42,199.41,0.03]
[1753165353963,16.78468397,199.43,199.41,0.03]
[1753165355470,17.46468397,199.43,199.41,0.03]
[1753165356165,0.68,199.42,199.41,0.03]
[1753165356950,21.79910199,199.43,199.41,0.03]
[1753165357755,36.84,199.44,199.42,10.7713692]
[1753165357959,0.68,199.51,199.43,11.4413692]
[1753165358176,0.68,199.51,199.41,0.03]
[1753165358177,36.78,199.53,199.49,10.7713692]
[1753165358549,5.01236445,199.51,199.47,10.7713692]
[1753165358872,17.52468397,199.5,199.43,26.0]
[1753165359050,11.4513692,199.49,199.42,10.7713692]
[1753165359256,16.78468397,199.49,199.46,10.7713692]
[1753165359450,16.78468397,199.49,199.47,10.7713692]
[1753165360952,36.86,199.5,199.48,11.4413692]
[1753165361170,36.86,199.5,199.49,7.23271345]
[1753165361171,0.06,199.5,199.49,7.23271345]
[1753165361809,0.06,199.5,199.49,7.90271345]
[1753165362377,0.06,199.5,199.49,12.91549604]
[1753165364076,1e-08,199.5,199.49,19.36739604]
[1753165364260,0.06,199.54,199.52,26.0]
[1753165364456,0.06,199.64,199.56,26.0]
[1753165364776,0.06,199.64,199.63,7.23271345]
[1753165364959,0.06,199.64,199.6,7.23271345]
[1753165365160,0.06,199.64,199.62,7.23271345]
[1753165365580,0.06,199.64,199.62,0.67]
[1753165365783,0.06,199.64,199.63,7.23271345]
[1753165367410,0.06,199.64,199.63,7.90271345]
[1753165367583,0.06,199.64,199.63,7.23271345]
[1753165368178,0.06,199.64,199.59,26.67]
[1753165368491,0.06,199.64,199.61,7.23271345]
[1753165368690,0.06,199.64,199.58,1.5206]
[1753165368991,16.78468397,199.63,199.59,7.23271345]
[1753165370212,22.4741022,199.63,199.59,7.23271345]
[1753165370600,17.46468397,199.63,199.59,7.23271345]
[1753165370798,22.47397534,199.63,199.59,7.23271345]
[1753165371009,17.46468397,199.63,199.59,7.23271345]
[1753165371890,0.68,199.62,199.59,7.23271345]
[1753165372207,17.46468397,199.61,199.56,7.23271345]
[1753165372379,16.78468397,199.61,199.57,7.23271345]
[1753165372583,24.01739742,199.59,199.53,7.23271345]
[1753165372804,16.78468397,199.57,199.49,48.77446561]
[1753165373013,16.78468397,199.57,199.53,7.23271345]
[1753165373207,0.68,199.56,199.53,7.23271345]
[1753165373608,16.78468397,199.57,199.51,7.23271345]
[1753165373907,0.68,199.55,199.51,7.23271345]
[1753165374122,16.78468397,199.53,199.44,6.5194]
[1753165374329,16.78468397,199.53,199.47,7.23271345]
[1753165374330,16.78468397,199.51,199.47,7.23271345]
[1753165374985,0.68,199.51,199.44,11.5334199]
[1753165375317,3.97620912,199.59,199.53,26.0]
[1753165375519,3.97620912,199.59,199.5,7.23271345]
[1753165375520,3.97620912,199.59,199.58,7.23271345]
[1753165375679,5.06924097,199.64,199.58,7.90271345]
[1753165375884,5.06924097,199.64,199.61,7.23271345]
[1753165376123,0.06,199.64,199.62,7.23271345]
[1753165376291,0.06,199.64,199.63,7.23271345]
[1753165377490,0.06,199.64,199.63,7.90271345]
[1753165378218,0.06,199.64,199.63,12.91198059]
[1753165378413,0.06,199.64,199.63,13.41198059]
[1753165379283,0.06,199.64,199.63,11.92569324]
[1753165379684,0.06,199.64,199.63,16.93496038]
[1753165380300,0.06,199.64,199.63,11.92569324]
[1753165380717,0.06,199.64,199.63,16.93496038]
[1753165380903,0.06,199.64,199.63,42.93496038]
[1753165381108,0.06,199.64,199.63,44.45626038]
[1753165382004,0.06,199.64,199.63,39.44699324]
[1753165382615,0.06,199.64,199.63,44.45626038]
[1753165382817,0.06,199.64,199.63,38.94699324]
[1753165383224,0.06,199.64,199.63,43.95626038]
[1753165383411,0.06,199.64,199.63,17.95626038]
[1753165383606,0.06,199.64,199.63,34.84565362]
[1753165383803,0.06,199.68,199.66,26.0]
[1753165384010,0.06,199.68,199.67,10.75569324]
[1753165384219,0.06,199.68,199.67,48.02569324]
[1753165384426,0.06,199.68,199.67,53.03395687]
[1753165384621,0.06,199.68,199.65,26.0]
[1753165384824,0.06,199.68,199.67,10.75569324]
[1753165385024,0.74,199.68,199.61,26.67]
[1753165385210,0.74,199.68,199.65,26.0]
[1753165385411,0.74,199.68,199.65,36.75569324]
[1753165385727,0.06,199.68,199.65,36.75569324]
[1753165386106,0.06,199.68,199.66,10.75569324]
[1753165386411,0.06,199.68,199.65,36.75569324]
[1753165386724,0.06,199.68,199.61,10.75569324]
[1753165386725,0.68,199.67,199.61,10.75569324]
[1753165387108,0.68,199.67,199.63,10.75569324]
[1753165387308,0.06,199.68,199.64,10.75569324]
[1753165387508,0.06,199.68,199.65,10.75569324]
[1753165387813,0.06,199.68,199.67,10.75569324]
[1753165388129,0.06,199.68,199.65,5.00854933]
[1753165388445,0.06,199.68,199.67,10.75569324]
[1753165388926,0.06,199.68,199.66,10.75569324]
[1753165389127,0.06,199.68,199.67,10.75569324]
[1753165390111,0.06,199.68,199.67,16.48395687]
[1753165390307,0.06,199.68,199.67,10.75569324]
[1753165390522,0.06,199.68,199.65,31.008719]
[1753165390728,0.06,199.68,199.67,10.75569324]
[1753165392438,0.06,199.68,199.67,16.48395687]
[1753165394139,0.06,199.68,199.67,15.76395687]
[1753165396047,0.78,199.68,199.65,10.75569324]
[1753165396544,0.78,199.68,199.66,10.75569324]
[1753165396741,0.06,199.68,199.66,10.75569324]
[1753165396938,0.06,199.68,199.67,10.75569324]
[1753165397128,0.06,199.68,199.67,11.47569324]
[1753165397432,0.06,199.68,199.67,10.75569324]
[1753165398016,0.06,199.68,199.67,15.76395687]
[1753165398212,0.06,199.68,199.67,16.48395687]
[1753165399370,0.06,199.68,199.67,5.72826363]
[1753165399540,0.06,199.68,199.67,12.94572616]
[1753165399923,0.06,199.68,199.67,7.21746253]
[1753165401028,0.78,199.68,199.65,7.21746253]
[1753165401253,0.72,199.67,199.65,7.21746253]
[1753165401430,0.06,199.68,199.62,31.00930777]
[1753165401620,0.72,199.67,199.61,5.00970822]
[1753165401816,0.72,199.67,199.63,7.21746253]
[1753165402022,0.06,199.68,199.66,7.21746253]
[1753165402443,0.06,199.68,199.67,33.93746253]
[1753165403240,0.06,199.68,199.67,41.15492506]
[1753165405026,0.06,199.68,199.67,46.16318869]
[1753165405228,1e-08,199.68,199.67,46.16318869]
[1753165405959,1e-08,199.68,199.67,38.94572616]
[1753165406423,1e-08,199.68,199.67,46.16318869]
[1753165406625,1e-08,199.68,199.67,38.94572616]
[1753165406824,1e-08,199.68,199.67,38.22572616]
[1753165407040,1e-08,199.68,199.67,48.66572616]
[1753165407628,0.72000001,199.68,199.64,0.03]
[1753165407953,0.72,199.67,199.65,7.21746253]
[1753165408152,0.72,199.66,199.64,0.03]
[1753165408446,0.72,199.66,199.65,7.21746253]
[1753165408947,16.78468397,199.65,199.64,0.03]
[1753165409141,0.72,199.65,199.64,0.03]
[1753165410247,1e-08,199.68,199.64,44.40746253]
[1753165410552,1e-08,199.68,199.67,7.21746253]
[1753165410741,1e-08,199.68,199.67,43.83746253]
[1753165411048,1e-08,199.68,199.67,48.84572616]
[1753165411433,1e-08,199.68,199.67,12.22572616]
[1753165411630,1e-08,199.68,199.67,48.84572616]
[1753165411946,1e-08,199.68,199.67,7.21746253]
[1753165412151,1e-08,199.68,199.67,3.48721915]
[1753165412369,0.72000001,199.68,199.67,10.70468168]
[1753165412648,0.72000001,199.68,199.67,3.48721915]
[1753165412870,1e-08,199.68,199.67,10.70468168]
[1753165413152,11.73254268,199.77,199.67,10.70468168]
[1753165413153,12.45254268,199.77,199.68,5.00801282]
[1753165413329,11.73254268,199.77,199.69,40.10721915]
[1753165413532,5.72604152,199.76,199.72,7.21746253]
[1753165413735,17.50468397,199.75,199.73,3.48721915]
[1753165413960,11.73254268,199.77,199.74,3.48721915]
[1753165414132,16.78468397,199.76,199.75,3.48721915]
[1753165414534,17.50468397,199.76,199.75,3.48721915]
[1753165415554,22.51069117,199.76,199.75,3.48721915]
[1753165415757,29.7281537,199.76,199.75,3.48721915]
[1753165416057,42.24317172,199.76,199.66,7.21746253]
[1753165416356,16.78468397,199.72,199.66,7.21746253]
[1753165416559,0.72,199.72,199.67,7.21746253]
[1753165416737,16.78468397,199.7,199.68,7.21746253]
[1753165416933,0.72,199.7,199.68,7.21746253]
[1753165417749,16.78468397,199.69,199.68,7.21746253]
[1753165418931,17.48468397,199.69,199.64,0.03]
[1753165419129,16.73854328,199.77,199.68,7.21746253]
[1753165419365,16.78468397,199.76,199.73,7.21746253]
[1753165419562,17.48468397,199.76,199.73,7.21746253]
[1753165419760,0.7,199.75,199.73,7.21746253]
[1753165419949,16.78468397,199.76,199.74,7.21746253]
[1753165420147,17.48468397,199.76,199.74,7.21746253]
[1753165420354,0.7,199.75,199.7,5.00748505]
[1753165420754,16.78468397,199.76,199.7,5.00748505]
[1753165421060,16.7383327,199.77,199.7,5.68748505]
[1753165421437,11.73254268,199.77,199.74,7.21746253]
[1753165421638,12.43254268,199.77,199.75,7.21746253]
[1753165422255,17.48468397,199.76,199.68,26.0]
[1753165422446,16.78468397,199.74,199.71,7.21746253]
[1753165422746,0.7,199.73,199.72,7.21746253]
[1753165423150,0.7,199.73,199.64,5.03878272]
[1753165423458,16.78468397,199.72,199.64,41.71878272]
[1753165423754,5.00726052,199.71,199.69,7.21746253]
[1753165423955,5.00654873,199.74,199.7,7.21746253]
[1753165424136,17.48468397,199.73,199.71,7.21746253]
[1753165424337,16.78468397,199.72,199.71,7.21746253]
[1753165425364,0.7,199.76,199.71,7.21746253]
[1753165425660,17.48468397,199.75,199.73,7.21746253]
[1753165426552,16.78468397,199.75,199.73,7.21746253]
[1753165426942,21.79098255,199.75,199.69,5.0077402]
[1753165427149,21.79098255,199.75,199.73,7.21746253]
[1753165427860,21.79098255,199.75,199.74,3.41429156]
[1753165428163,22.49098255,199.75,199.74,3.41429156]
[1753165428360,21.79098255,199.75,199.74,3.41429156]
[1753165428563,21.79071804,199.76,199.74,3.41429156]
[1753165428748,21.79071804,199.76,199.75,3.41429156]
[1753165429553,22.49071804,199.76,199.75,3.41429156]
[1753165429754,22.49071804,199.76,199.75,3.41222688]
[1753165431256,29.70818057,199.76,199.75,3.41222688]
[1753165432772,11.79254268,199.77,199.75,3.4157416]
[1753165433074,33.58302592,199.77,199.76,3.4157416]
[1753165433450,34.28302592,199.77,199.76,3.4157416]
[1753165433646,29.27722665,199.77,199.76,3.4157416]
[1753165433850,11.79254268,199.77,199.76,3.4157416]
[1753165434076,11.79254268,199.77,199.76,10.63320413]
[1753165434960,11.79254268,199.77,199.76,16.31921133]
[1753165435672,8.57080819,199.77,199.76,16.31921133]
[1753165440778,8.57080819,199.77,199.76,3.4157416]
[1753165440976,8.57080819,199.77,199.76,10.63320413]
[1753165441163,8.57080819,199.77,199.76,15.63921133]
[1753165441359,8.57080819,199.77,199.76,16.31921133]
[1753165444179,8.57080819,199.77,199.76,53.0912946]
[1753165444481,97.831925,199.86,199.8,26.0]
[1753165444662,97.831925,199.86,199.85,7.21746253]
[1753165444979,97.831925,199.86,199.85,10.8652874]
[1753165445891,97.831925,199.86,199.85,3.64782487]
[1753165446052,97.831925,199.86,199.85,10.8652874]
[1753165446964,97.831925,199.86,199.85,15.86904021]
[1753165447165,98.531925,199.86,199.85,3.64782487]
[1753165447476,115.31660897,199.86,199.85,3.64782487]
[1753165447856,115.37660897,199.86,199.85,3.64782487]
[1753165449382,114.67660897,199.86,199.85,3.64782487]
[1753165450183,97.891925,199.86,199.85,10.8652874]
[1753165451867,97.891925,199.86,199.85,15.86904021]
[1753165452190,97.891925,199.86,199.85,10.8652874]
[1753165452561,97.891925,199.86,199.85,15.86904021]
[1753165453894,97.891925,199.86,199.85,10.8652874]
[1753165454587,97.891925,199.86,199.85,15.86904021]
[1753165454762,97.891925,199.86,199.85,16.55904021]
[1753165454962,97.891925,199.86,199.85,15.86904021]
[1753165455380,97.891925,199.86,199.85,10.8652874]
[1753165456984,97.891925,199.86,199.85,3.64782487]
[1753165457178,97.891925,199.86,199.85,10.8652874]
[1753165457884,97.891925,199.86,199.85,3.64782487]
[1753165458090,97.891925,199.86,199.85,10.8652874]
[1753165458669,97.891925,199.86,199.85,3.64782487]
[1753165458988,97.891925,199.86,199.85,15.86904021]
[1753165460585,97.891925,199.86,199.85,16.55904021]
[1753165460792,97.891925,199.86,199.85,8.65157768]
[1753165460998,97.891925,199.86,199.85,15.86904021]
[1753165461293,97.891925,199.86,199.85,49.49511211]
[1753165462490,97.891925,199.86,199.85,3.64782487]
[1753165462696,115.34660897,199.86,199.85,3.64782487]
[1753165462900,115.34660897,199.86,199.85,8.1513593]
[1753165463788,97.891925,199.86,199.85,13.15511211]
[1753165464115,97.891925,199.86,199.85,13.84511211]
[1753165464412,97.891925,199.86,199.85,8.1513593]
[1753165464976,98.561925,199.86,199.85,3.64782487]
[1753165465193,98.561925,199.86,199.85,8.1513593]
[1753165465609,98.561925,199.86,199.85,3.64782487]
[1753165465793,97.891925,199.86,199.85,13.15511211]
[1753165466280,97.891925,199.86,199.85,8.1513593]
[1753165466676,98.561925,199.86,199.85,8.1513593]
[1753165467798,97.891925,199.86,199.85,8.1513593]
[1753165468377,97.891925,199.86,199.85,3.64782487]
[1753165468580,120.35011142,199.86,199.85,3.64782487]
[1753165469098,120.35011142,199.86,199.85,2.92782487]
[1753165469787,124.85364585,199.86,199.85,2.92782487]
[1753165470501,16.78468397,199.85,199.76,0.03]
[1753165470707,21.2882184,199.83,199.77,4.50353443]
[1753165470912,36.99,199.82,199.77,4.50353443]
[1753165471210,16.78468397,199.8,199.77,4.53353443]
[1753165471389,36.32,199.79,199.77,4.53353443]
[1753165471709,36.32,199.79,199.77,0.03]
[1753165471710,21.9582184,199.78,199.77,0.03]
[1753165471894,22.46019002,199.78,199.77,0.03]
[1753165472094,58.78019002,199.78,199.77,0.03]
[1753165473108,63.28372445,199.78,199.77,0.03]
[1753165474318,63.28372445,199.78,199.76,0.03]
[1753165474611,21.9582184,199.77,199.76,0.03]
[1753165474819,25.88611676,199.77,199.76,0.03]
[1753165475315,16.78468397,199.76,199.68,0.03]
[1753165475495,16.78468397,199.7,199.68,0.03]
[1753165475686,36.32,199.69,199.68,0.03]
[1753165475886,63.28598043,199.69,199.68,0.03]
[1753165476296,64.87488043,199.69,199.68,0.03]
[1753165476494,64.87488043,199.69,199.68,1e-08]
[1753165477203,16.78468397,199.68,199.67,1e-08]
[1753165477404,16.78468397,199.68,199.63,0.03]
[1753165477405,21.9582184,199.68,199.63,0.03]
[1753165477597,21.2882184,199.64,199.63,0.03]
[1753165477909,16.78468397,199.61,199.6,0.03]
[1753165478412,53.12468397,199.61,199.6,0.03]
[1753165478910,16.78468397,199.64,199.6,4.53353443]
[1753165479112,16.78468397,199.62,199.6,4.53353443]
[1753165479416,16.78468397,199.63,199.6,7.2554966]
[1753165479731,0.71,199.62,199.6,0.03]
[1753165479893,21.79445301,199.61,199.6,0.03]
[1753165480092,22.50445301,199.61,199.6,0.03]
[1753165480393,17.49468397,199.61,199.6,0.03]
[1753165480598,36.34,199.62,199.6,0.03]
[1753165480790,53.12468397,199.63,199.6,0.03]
[1753165480991,0.71,199.62,199.6,0.03]
[1753165481191,53.12468397,199.61,199.6,0.03]
[1753165481410,53.83468397,199.61,199.6,0.03]
[1753165481819,61.06018057,199.61,199.6,0.03]
[1753165481990,66.06994961,199.61,199.6,0.03]
[1753165483220,53.83468397,199.61,199.6,0.03]
[1753165483408,66.06994961,199.61,199.6,0.03]
[1753165484488,22.50445301,199.61,199.6,0.03]
[1753165484690,58.84445301,199.61,199.6,0.03]
[1753165484895,66.06994961,199.61,199.6,0.03]
[1753165485899,5.01027105,199.59,199.56,0.2]
[1753165486101,30.23398057,199.57,199.56,0.2]
[1753165486531,67.28398057,199.57,199.56,0.2]
[1753165486704,67.28398057,199.57,199.56,1e-08]
[1753165487099,60.05848397,199.57,199.53,1e-08]
[1753165487315,24.01018057,199.54,199.53,1e-08]
[1753165487514,60.37018057,199.54,199.53,1e-08]
[1753165487813,61.08018057,199.54,199.53,1e-08]
[1753165488021,66.09170708,199.54,199.53,1e-08]
[1753165488332,17.49468397,199.54,199.53,1e-08]
[1753165488631,14.08557763,199.59,199.53,7.22549661]
[1753165488632,16.78468397,199.58,199.53,7.22549661]
[1753165488945,53.16468397,199.58,199.57,7.2254966]
[1753165489302,16.78468397,199.57,199.56,7.2254966]
[1753165489600,17.49468397,199.57,199.55,7.2254966]
[1753165489800,16.78468397,199.55,199.53,1e-08]
[1753165489999,16.78468397,199.55,199.54,7.2254966]
[1753165490700,14.12454962,199.64,199.54,7.2254966]
[1753165490903,16.78468397,199.62,199.58,7.2254966]
[1753165491112,42.09926714,199.63,199.59,7.2254966]
[1753165491113,16.78468397,199.6,199.59,7.2254966]
[1753165491931,16.78468397,199.6,199.55,0.66]
[1753165491932,16.78468397,199.59,199.58,7.2254966]
[1753165492209,21.79495502,199.59,199.55,0.66]
[1753165492417,21.79495502,199.59,199.57,7.2254966]
[1753165492725,16.78468397,199.59,199.53,1e-08]
[1753165492907,17.49468397,199.59,199.55,7.2254966]
[1753165493107,16.78468397,199.57,199.55,7.2254966]
[1753165493307,16.78468397,199.57,199.56,7.2254966]
[1753165493509,16.78468397,199.57,199.53,1e-08]
[1753165493712,16.78468397,199.57,199.55,7.2254966]
[1753165493912,16.78468397,199.57,199.54,7.2254966]
[1753165494116,16.78468397,199.55,199.53,7.22549661]
[1753165494311,21.79611603,199.55,199.53,1e-08]
[1753165494717,16.78468397,199.53,199.5,0.03]
[1753165495023,53.85468397,199.54,199.5,0.03]
[1753165495024,16.78468397,199.51,199.5,0.03]
[1753165496524,21.79696405,199.51,199.5,0.03]
[1753165496723,22.50696405,199.51,199.5,0.03]
[1753165497028,16.78468397,199.51,199.5,0.03]
[1753165499029,22.50696405,199.51,199.5,0.03]
[1753165499212,16.78468397,199.51,199.5,0.03]
[1753165499412,17.49468397,199.51,199.5,0.03]
[1753165499718,22.50696405,199.51,199.5,0.03]
[1753165500904,29.73246065,199.51,199.49,0.03]
[1753165501103,61.10018057,199.5,199.49,0.03]
[1753165501629,61.10018057,199.5,199.49,1e-08]
[1753165501832,24.72018057,199.5,199.49,1e-08]
[1753165502126,53.87468397,199.5,199.49,1e-08]
[1753165502312,58.88721529,199.5,199.49,1e-08]
[1753165502828,58.90721529,199.5,199.49,1e-08]
[1753165503333,66.13271189,199.5,199.49,1e-08]
[1753165504621,58.19721529,199.5,199.49,1e-08]
[1753165504807,58.88721529,199.5,199.49,1e-08]
[1753165505642,66.11271189,199.5,199.49,1e-08]
[1753165505944,24.01018057,199.47,199.46,0.03]
[1753165506234,60.41018057,199.47,199.46,0.03]
[1753165506442,66.13346577,199.47,199.46,0.03]
[1753165506946,18.28828397,199.46,199.44,1e-08]
[1753165507112,60.39018057,199.45,199.44,1e-08]
[1753165507313,61.10018057,199.45,199.44,1e-08]
[1753165507525,60.39018057,199.45,199.44,1e-08]
[1753165507704,61.10018057,199.45,199.44,1e-08]
[1753165508107,16.78468397,199.44,199.41,0.03]
[1753165508308,24.01018057,199.42,199.37,0.03]
[1753165508604,24.01018057,199.38,199.37,0.03]
[1753165508810,16.78468397,199.37,199.34,0.2]
[1753165509026,24.01018057,199.35,199.34,0.2]
[1753165509448,24.70018057,199.35,199.34,0.2]
[1753165510319,24.70018057,199.35,199.33,0.03]
[1753165510521,16.78468397,199.33,199.28,0.03]
[1753165510708,16.78468397,199.29,199.28,0.03]
[1753165510911,53.18468397,199.29,199.28,4.03619631]
[1753165511109,36.4,199.29,199.28,4.03619631]
[1753165511326,5.01554819,199.38,199.28,11.26169291]
[1753165511529,16.78468397,199.36,199.29,4.00619631]
[1753165511707,53.20468397,199.36,199.33,7.2254966]
[1753165511913,16.78468397,199.39,199.35,7.2254966]
[1753165512145,16.78468397,199.37,199.36,0.69]
[1753165512310,16.78468397,199.37,199.36,7.9154966]
[1753165512508,16.78468397,199.39,199.36,7.9154966]
[1753165512728,36.42,199.42,199.38,7.2254966]
[1753165513040,36.42,199.42,199.39,7.9154966]
[1753165513243,16.78468397,199.41,199.36,0.69]
[1753165513542,16.78468397,199.39,199.36,0.69]
[1753165513739,16.78468397,199.39,199.38,7.2254966]
[1753165513932,16.78468397,199.39,199.38,3.31794727]
[1753165514132,16.78468397,199.39,199.38,7.9154966]
[1753165514638,21.79904077,199.43,199.38,0.69]
[1753165514945,53.18468397,199.43,199.4,7.2254966]
[1753165515246,53.18468397,199.43,199.41,7.9154966]
[1753165515636,53.18468397,199.43,199.41,0.69]
[1753165515842,53.18468397,199.43,199.4,7.2254966]
[1753165516044,53.18468397,199.43,199.41,3.32340003]
[1753165516245,53.18468397,199.43,199.42,3.3264424]
[1753165516246,66.11449536,199.43,199.42,3.3264424]
[1753165516433,66.11449536,199.43,199.38,7.2254966]
[1753165516434,58.19899876,199.43,199.38,7.2254966]
[1753165516631,58.19899876,199.43,199.39,3.32714509]
[1753165516844,58.19899876,199.43,199.4,3.32714509]
[1753165517048,58.19899876,199.43,199.41,3.32714509]
[1753165517246,58.19899876,199.43,199.42,3.32968936]
[1753165517639,66.11449536,199.43,199.42,3.32968936]
[1753165517842,16.78468397,199.37,199.35,0.03]
[1753165518052,53.18468397,199.37,199.35,0.03]
[1753165518244,24.70018057,199.36,199.35,0.03]
[1753165518642,29.71623193,199.36,199.35,0.03]
[1753165519734,21.80073533,199.36,199.35,0.03]
[1753165519945,16.78468397,199.36,199.35,0.03]
[1753165520655,21.80073533,199.36,199.35,0.03]
[1753165521040,16.78468397,199.36,199.35,0.03]
[1753165521561,16.78468397,199.36,199.35,0.72]
[1753165521969,36.4,199.37,199.35,0.72]
[1753165522147,16.78468397,199.4,199.35,7.9454966]
[1753165522345,53.18468397,199.4,199.37,7.2254966]
[1753165522655,53.18468397,199.4,199.37,7.9154966]
[1753165522860,53.18468397,199.4,199.37,0.69]
[1753165523164,53.18468397,199.4,199.36,7.2254966]
[1753165523476,58.1997994,199.4,199.36,7.2254966]